fUSD/lending_fUSD_20260421
["ID","MTS","AMOUNT","RATE_DAILY","PERIOD"]
[420909165,1776712234383,-500.0,8.288e-05,2]
[420909166,1776712234394,-1524.0,8.288e-05,2]
[420909167,1776712234405,-500.0,8.288e-05,2]
[420909168,1776712234416,-784.0,8.288e-05,2]
[420909169,1776712234426,-1524.0,8.288e-05,2]
[420909170,1776712234437,-500.0,8.288e-05,2]
[420909171,1776712234448,-500.0,8.288e-05,2]
[420909172,1776712234458,-784.0,8.288e-05,2]
[420909173,1776712234469,-500.0,8.288e-05,2]
[420909174,1776712234479,-1524.0,8.288e-05,2]
[420909175,1776712234490,-500.0,8.288e-05,2]
[420909176,1776712234501,-784.0,8.288e-05,2]
[420909177,1776712234512,-500.0,8.288e-05,2]
[420909178,1776712234523,-1524.0,8.288e-05,2]
[420909179,1776712234534,-500.0,8.288e-05,2]
[420909180,1776712234544,-198.46692392,8.288e-05,2]
[420909181,1776712234555,-500.0,8.288e-05,2]
[420909182,1776712234566,-1524.0,8.288e-05,2]
[420909183,1776712234577,-500.0,8.288e-05,2]
[420909184,1776712234588,-1524.0,8.288e-05,2]
[420909185,1776712234599,-500.0,8.288e-05,2]
[420909186,1776712234609,-784.0,8.288e-05,2]
[420909187,1776712234620,-1524.0,8.288e-05,2]
[420909188,1776712234630,-1524.0,8.288e-05,2]
[420909189,1776712234652,-459.20054883,8.288e-05,2]
[420909190,1776712234662,-1524.0,8.288e-05,2]
[420909191,1776712234674,-1524.0,8.288e-05,2]
[420909192,1776712234685,-1524.0,8.288e-05,2]
[420909193,1776712234696,-784.0,8.288e-05,2]
[420909194,1776712234707,-1524.0,8.288e-05,2]
[420909195,1776712234718,-1524.0,8.288e-05,2]
[420909196,1776712234729,-1524.0,8.288e-05,2]
[420909197,1776712234740,-1524.0,8.288e-05,2]
[420909198,1776712234751,-784.0,8.288e-05,2]
[420909199,1776712234762,-1524.0,8.288e-05,2]
[420909200,1776712234773,-784.0,8.288e-05,2]
[420909201,1776712234785,-1087.19062368,8.288e-05,2]
[420909202,1776712236433,998.0,8.219e-05,2]
[420909203,1776712236604,998.0,8.219e-05,2]
[420909204,1776712236992,998.0,8.219e-05,2]
[420909205,1776712237158,998.0,8.219e-05,2]
[420909206,1776712237529,728.18278835,8.219e-05,2]
[420909207,1776712237557,269.81721165,8.219e-05,2]
[420909219,1776712239615,998.0,8.219e-05,2]
[420909221,1776712239786,998.0,8.219e-05,2]
[420909222,1776712239852,998.0,8.219e-05,2]
[420909223,1776712239977,998.0,8.219e-05,2]
[420909224,1776712239989,-436.80937632,8.288e-05,2]
[420909225,1776712239999,-784.0,8.288e-05,2]
[420909226,1776712240008,-1524.0,8.288e-05,2]
[420909227,1776712240017,-1524.0,8.288e-05,2]
[420909228,1776712240027,-784.0,8.288e-05,2]
[420909229,1776712240036,-1524.0,8.288e-05,2]
[420909230,1776712240046,-784.0,8.288e-05,2]
[420909231,1776712240055,-1524.0,8.288e-05,2]
[420909232,1776712240065,-794.98240483,8.288e-05,2]
[420909233,1776712240074,-1529.13919071,8.288e-05,2]
[420909234,1776712240083,-578.20924308,8.288e-05,2]
[420909235,1776712240092,-500.0,8.288e-05,2]
[420909236,1776712240102,-209.40437684,8.288e-05,2]
[420909237,1776712240112,-152.0,8.29e-05,7]
[420909238,1776712240121,-151.0,8.338e-05,2]
[420909239,1776712240130,-500.0,8.343e-05,2]
[420909240,1776712240139,-151.0,8.393e-05,2]
[420909241,1776712240149,-500.0,8.398e-05,2]
[420909242,1776712240158,-150.0,8.4e-05,2]
[420909243,1776712240167,-611.81980635,8.411e-05,2]
[420909244,1776712240177,-151.0,8.448e-05,2]
[420909245,1776712240186,-500.0,8.453e-05,2]
[420909246,1776712240196,-500.0,8.466e-05,2]
[420909247,1776712240206,-6127.74000747,8.48e-05,2]
[420909248,1776712240215,-996.0,8.495e-05,2]
[420909249,1776712240224,-151.0,8.503e-05,2]
[420909250,1776712240233,-500.0,8.508e-05,2]
[420909251,1776712240243,-150.0,8.52e-05,2]
[420909252,1776712240252,-880.32,8.521e-05,2]
[420909253,1776712240262,-500.54897623,8.533e-05,2]
[420909254,1776712240271,-721.12765535,8.553e-05,2]
[420909255,1776712240280,-200.0,8.553e-05,2]
[420909256,1776712240289,-1428.38747117,8.553e-05,2]
[420909257,1776712240299,-743.50770149,8.553e-05,2]
[420909258,1776712240308,-2000.0,8.553e-05,2]
[420909259,1776712240318,-2000.0,8.553e-05,2]
[420909260,1776712240327,-2000.0,8.553e-05,2]
[420909261,1776712240336,-2000.0,8.553e-05,2]
[420909262,1776712240346,-2000.0,8.553e-05,2]
[420909263,1776712240356,-2000.0,8.553e-05,2]
[420909264,1776712240366,-2000.0,8.553e-05,2]
[420909265,1776712240376,-2000.0,8.553e-05,2]
[420909266,1776712240386,-333.29963729,8.553e-05,2]
[420909267,1776712240399,-1666.70036271,8.553e-05,2]
[420909268,1776712240409,-2000.0,8.553e-05,2]
[420909269,1776712240419,-2000.0,8.553e-05,2]
[420909270,1776712240428,-151.0,8.553e-05,2]
[420909271,1776712240438,-279.9045709,8.553e-05,2]
[420909272,1776712240447,-194.3266572,8.553e-05,2]
[420909273,1776712240457,-151.0,8.555e-05,2]
[420909274,1776712240466,-500.0,8.557e-05,2]
[420909275,1776712240476,-265.74643662,8.557e-05,2]
[420909276,1776712240486,-173.94636136,8.557e-05,2]
[420909277,1776712240495,-500.0,8.557e-05,2]
[420909278,1776712240505,-422.09063994,8.557e-05,2]
[420909279,1776712240515,-500.0,8.557e-05,2]
[420909280,1776712240524,-170.01173481,8.557e-05,2]
[420909281,1776712240534,-500.0,8.557e-05,2]
[420909282,1776712240543,-500.0,8.557e-05,2]
[420909283,1776712240552,-500.0,8.557e-05,2]
[420909284,1776712240562,-500.0,8.557e-05,2]
[420909285,1776712240572,-20352.1710296,8.558e-05,2]
[420909287,1776712240581,-6974.3443402,8.558e-05,2]
[420909288,1776712240591,-10692.24219633,8.558e-05,2]
[420909289,1776712240603,-1826.1386616,8.558e-05,2]
[420909290,1776712240615,-2149.54225841,8.558e-05,2]
[420909291,1776712240634,-2050.45774159,8.558e-05,2]
[420909292,1776712240680,998.0,8.219e-05,2]
[420909293,1776712240707,-2085.91140435,8.558e-05,2]
[420909294,1776712240719,-42216.28094312,8.558e-05,2]
[420909295,1776712240728,-50191.600053,8.558e-05,2]
[420909296,1776712240738,-10128.2455604,8.558e-05,2]
[420909297,1776712240747,-151.0,8.558e-05,2]
[420909298,1776712240756,-151.0,8.558e-05,2]
[420909299,1776712240765,-330.246154,8.558e-05,2]
[420909300,1776712240775,-330.246154,8.558e-05,2]
[420909301,1776712240784,-330.246154,8.558e-05,2]
[420909302,1776712240793,-330.246154,8.558e-05,2]
[420909303,1776712240803,-151.0,8.558e-05,2]
[420909304,1776712240811,-151.0,8.558e-05,2]
[420909305,1776712240821,-151.0,8.558e-05,2]
[420909306,1776712240830,-1500.0,8.558e-05,2]
[420909307,1776712240839,-1500.0,8.558e-05,2]
[420909308,1776712240848,-1500.0,8.558e-05,2]
[420909309,1776712240858,-1500.0,8.558e-05,2]
[420909310,1776712240867,-352.153519,8.558e-05,2]
[420909311,1776712240876,-352.153519,8.558e-05,2]
[420909312,1776712240885,-352.153519,8.558e-05,2]
[420909313,1776712240894,-352.153519,8.558e-05,2]
[420909314,1776712240904,-151.0,8.558e-05,2]
[420909315,1776712240914,-151.0,8.559e-05,2]
[420909316,1776712240924,-151.0,8.559e-05,2]
[420909317,1776712240934,-151.0,8.559e-05,2]
[420909318,1776712240943,-241.427,8.561e-05,2]
[420909319,1776712240953,-207295.75162424,8.562e-05,2]
[420909320,1776712240962,-151.0,8.562e-05,2]
[420909321,1776712240972,-151.0,8.562e-05,2]
[420909322,1776712240981,-151.0,8.562e-05,2]
[420909323,1776712240990,-151.0,8.562e-05,2]
[420909324,1776712241000,-1532.0,8.562e-05,2]
[420909325,1776712241009,-1532.0,8.562e-05,2]
[420909326,1776712241018,-1532.0,8.562e-05,2]
[420909327,1776712241027,-330.246154,8.562e-05,2]
[420909328,1776712241036,-330.246154,8.562e-05,2]
[420909329,1776712241046,-330.246154,8.562e-05,2]
[420909330,1776712241055,-330.246154,8.562e-05,2]
[420909331,1776712241064,-151.0,8.562e-05,2]
[420909332,1776712241073,-352.153519,8.562e-05,2]
[420909333,1776712241083,-352.153519,8.562e-05,2]
[420909334,1776712241092,-352.153519,8.562e-05,2]
[420909335,1776712241101,-1532.0,8.562e-05,2]
[420909336,1776712241111,-185.3567589,8.562e-05,2]
[420909337,1776712241120,-352.153519,8.562e-05,2]
[420909338,1776712241129,-152.0,8.562e-05,2]
[420909339,1776712241138,-1532.0,8.562e-05,2]
[420909340,1776712241147,-164.11018956,8.562e-05,2]
[420909341,1776712241156,-1532.0,8.562e-05,2]
[420909342,1776712241166,-1532.0,8.562e-05,2]
[420909343,1776712241175,-1532.0,8.562e-05,2]
[420909344,1776712241184,-1532.0,8.562e-05,2]
[420909345,1776712241194,-1532.0,8.562e-05,2]
[420909346,1776712241203,-1532.0,8.562e-05,2]
[420909347,1776712241213,-167.32496857,8.562e-05,2]
[420909348,1776712241222,-151.0,8.562e-05,2]
[420909349,1776712241233,-151.0,8.562e-05,2]
[420909350,1776712241242,-500.0,8.563e-05,2]
[420909351,1776712241253,-29931.27522463,8.587e-05,2]
[420909352,1776712241263,-264.0,8.592e-05,5]
[420909353,1776712241272,-151.0,8.613e-05,2]
[420909354,1776712241673,-500.0,8.618e-05,2]
[420909355,1776712241701,-151.0,8.668e-05,2]
[420909356,1776712241711,-500.0,8.673e-05,2]
[420909357,1776712241721,-151.0,8.676e-05,2]
[420909358,1776712241730,-151.0,8.676e-05,2]
[420909359,1776712241740,-165.6,8.687e-05,2]
[420909360,1776712241750,-496.62146058,8.711e-05,2]
[420909361,1776712241759,-151.0,8.723e-05,2]
[420909362,1776712241769,-500.0,8.728e-05,2]
[420909363,1776712241779,-1390.30573936,8.743e-05,2]
[420909364,1776712241788,-250.0,8.767e-05,2]
[420909365,1776712241798,-364.14,8.767e-05,2]
[420909366,1776712241807,-151.0,8.778e-05,2]
[420909367,1776712241817,-500.0,8.783e-05,2]
[420909368,1776712241826,-150.0,8.8e-05,2]
[420909369,1776712241836,-503.41322101,8.811e-05,2]
[420909370,1776712241845,-500.0,8.811e-05,2]
[420909371,1776712241854,-500.0,8.811e-05,2]
[420909372,1776712241863,-500.0,8.811e-05,2]
[420909373,1776712241872,-217.15233878,8.831e-05,2]
[420909374,1776712241882,-181.08010149,8.831e-05,2]
[420909375,1776712241891,-151.0,8.833e-05,2]
[420909376,1776712241900,-217.15233878,8.836e-05,2]
[420909377,1776712241909,-500.0,8.838e-05,2]
[420909378,1776712241919,-150.0,8.843e-05,2]
[420909379,1776712241928,-150.0,8.843e-05,2]
[420909380,1776712241937,-165.17615804,8.843e-05,2]
[420909381,1776712241946,-500.0,8.843e-05,2]
[420909382,1776712241955,-500.0,8.843e-05,2]
[420909383,1776712241964,-599.09466425,8.843e-05,2]
[420909384,1776712241974,-500.0,8.843e-05,2]
[420909385,1776712241983,-500.0,8.843e-05,2]
[420909386,1776712241994,-500.0,8.843e-05,2]
[420909387,1776712242003,-500.0,8.843e-05,2]
[420909388,1776712242013,-500.0,8.843e-05,2]
[420909389,1776712242022,-400.50178224,8.843e-05,2]
[420909390,1776712242032,-151.0,8.857e-05,2]
[420909391,1776712242041,-151.0,8.857e-05,2]
[420909392,1776712242051,-588.30423453,8.867e-05,2]
[420909393,1776712242060,-151.0,8.891e-05,2]
[420909394,1776712242070,-500.0,8.904e-05,2]
[420909395,1776712242080,-165.6,8.948e-05,2]
[420909396,1776712242089,-1600.0,8.95e-05,2]
[420909397,1776712242099,-5000.0,9e-05,2]
[420909398,1776712242108,-4600.0,9e-05,3]
[420909399,1776712242119,-150.0,9.01e-05,2]
[420909400,1776712242128,-1680.0,9.057e-05,2]
[420909401,1776712242138,-193.0,9.057e-05,2]
[420909402,1776712242148,-300.0,9.057e-05,2]
[420909403,1776712242158,-5000.0,9.057e-05,2]
[420909404,1776712242167,-193.0,9.059e-05,2]
[420909405,1776712242177,-300.0,9.059e-05,2]
[420909406,1776712242187,-179.03775452,9.059e-05,2]
[420909407,1776712242196,-5000.0,9.059e-05,2]
[420909408,1776712242205,-250.0,9.059e-05,2]
[420909409,1776712242215,-300.0,9.059e-05,2]
[420909410,1776712242225,-1295.89059916,9.059e-05,2]
[420909411,1776712242234,-250.0,9.059e-05,2]
[420909412,1776712242244,-255.0,9.088e-05,2]
[420909413,1776712242254,-1481.23780761,9.101e-05,2]
[420909414,1776712242264,-200.0,9.101e-05,2]
[420909415,1776712242274,-771.01748645,9.101e-05,2]
[420909416,1776712242283,-151.0,9.117e-05,2]
[420909417,1776712242292,-330.246154,9.117e-05,2]
[420909418,1776712242302,-330.246154,9.117e-05,2]
[420909419,1776712242311,-330.246154,9.117e-05,2]
[420909420,1776712242321,-330.246154,9.117e-05,2]
[420909421,1776712242330,-151.0,9.123e-05,2]
[420909422,1776712242340,-4470.26,9.123e-05,2]
[420909423,1776712242349,-152.0,9.189e-05,2]
[420909424,1776712242359,-167.0,9.189e-05,2]
[420909425,1776712242368,-152.0,9.189e-05,2]
[420909426,1776712242377,-167.0,9.189e-05,2]
[420909427,1776712242387,-1532.0,9.189e-05,2]
[420909428,1776712242396,-1532.0,9.189e-05,2]
[420909429,1776712242406,-151.0,9.189e-05,2]
[420909430,1776712242416,-151.0,9.189e-05,2]
[420909432,1776712242426,-352.153519,9.208e-05,2]
[420909434,1776712242436,-352.153519,9.208e-05,2]
[420909435,1776712242445,-352.153519,9.208e-05,2]
[420909437,1776712242454,-352.153519,9.208e-05,2]
[420909438,1776712242464,-165.6,9.209e-05,2]
[420909439,1776712242473,-160.0,9.238e-05,2]
[420909441,1776712242483,-202.788569,9.238e-05,2]
[420909442,1776712242491,-245.577138,9.238e-05,2]
[420909443,1776712242501,-160.0,9.24e-05,2]
[420909444,1776712242510,-1997.785687,9.24e-05,2]
[420909445,1776712242519,-3835.571375,9.24e-05,2]
[420909446,1776712242529,-160.0,9.24e-05,2]
[420909448,1776712242538,-221.011299,9.24e-05,2]
[420909450,1776712242548,-282.022598,9.24e-05,2]
[420909451,1776712242557,-2000.0,9.247e-05,2]
[420909452,1776712242566,-150.0,9.268e-05,2]
[420909453,1776712242576,-150.0,9.31e-05,2]
[420909454,1776712242585,-225.18697532,9.379e-05,2]
[420909457,1776712242595,-187.78006525,9.379e-05,2]
[420909459,1776712242604,-195.414439,9.381e-05,2]
[420909461,1776712242614,-160.0,9.381e-05,2]
[420909463,1776712242624,-726.721644,9.381e-05,2]
[420909465,1776712242633,-1293.443288,9.381e-05,2]
[420909467,1776712242642,-160.0,9.381e-05,2]
[420909469,1776712242651,-1726.853195,9.381e-05,2]
[420909471,1776712242661,-3293.70639,9.381e-05,2]
[420909473,1776712242670,-186.97996572,9.384e-05,2]
[420909475,1776712242679,-500.0,9.397e-05,2]
[420909477,1776712242690,-155.0,9.417e-05,2]
[420909478,1776712242699,-10128.2455604,9.426e-05,2]
[420909479,1776712242708,-20352.1710296,9.428e-05,2]
[420909480,1776712242717,-161.0,9.5e-05,2]
[420909481,1776712242726,-161.0,9.5e-05,2]
[420909482,1776712242736,-161.0,9.5e-05,2]
[420909483,1776712242745,-13615.5302716,9.533e-05,2]
[420909484,1776712242755,-350.0,9.537e-05,2]
[420909485,1776712242764,-250.0,9.537e-05,2]
[420909486,1776712242773,-1556.1865695,9.556e-05,2]
[420909487,1776712242783,-53319.7610087,9.573e-05,2]
[420909488,1776712242791,-151.0,9.573e-05,2]
[420909489,1776712242801,-151.0,9.573e-05,2]
[420909490,1776712242810,-151.0,9.573e-05,2]
[420909491,1776712242819,-330.246154,9.573e-05,2]
[420909492,1776712242829,-330.246154,9.573e-05,2]
[420909493,1776712242839,-330.246154,9.573e-05,2]
[420909494,1776712242848,-330.246154,9.573e-05,2]
[420909495,1776712242857,-151.0,9.573e-05,2]
[420909496,1776712242866,-352.153519,9.573e-05,2]
[420909497,1776712242876,-352.153519,9.573e-05,2]
[420909498,1776712242885,-352.153519,9.573e-05,2]
[420909499,1776712242894,-352.153519,9.573e-05,2]
[420909500,1776712242903,-11199.2597579,9.609e-05,2]
[420909501,1776712242913,-289.0,9.638e-05,5]
[420909502,1776712242922,-200.0,9.649e-05,2]
[420909503,1776712242931,-1536.04360649,9.649e-05,2]
[420909504,1776712242941,-597.59132063,9.649e-05,2]
[420909505,1776712242950,-150.0,9.661e-05,2]
[420909506,1776712242959,-276.529867,9.7e-05,2]
[420909507,1776712242969,-2724.25321,9.702e-05,2]
[420909508,1776712242979,-301.379044,9.702e-05,2]
[420909509,1776712242990,-3038.03545,9.751e-05,2]
[420909510,1776712243001,-347.2321584,9.778e-05,2]
[420909511,1776712243010,-11897.2468129,9.798e-05,2]
[420909512,1776712243019,-2498.8926233,9.843e-05,2]
[420909513,1776712243029,-1486.47609,9.85e-05,2]
[420909514,1776712243038,-2354.799811,9.85e-05,2]
[420909515,1776712243047,-5000.0,9.9e-05,2]
[420909516,1776712243056,-233.51889341,9.927e-05,2]
[420909517,1776712243065,-194.72792766,9.927e-05,2]
[420909518,1776712243074,-1600.0,9.945e-05,2]
[420909519,1776712243084,-2351.0,9.963e-05,2]
[420909520,1776712243092,-433.0,9.997e-05,2]
[420909521,1776712243102,-4897.37979396,0.0001,2]
[420909522,1776712243111,-4979.53312785,0.0001,2]
[420909523,1776712243120,-2557.56873543,0.0001,2]
[420909524,1776712243129,-8053.46245416,0.0001,2]
[420909525,1776712243138,-6222.07025736,0.0001,2]
[420909526,1776712243148,-4953.7422112,0.0001,2]
[420909527,1776712243157,-4887.56457436,0.0001,2]
[420909528,1776712243166,-4882.04321828,0.0001,2]
[420909529,1776712243175,-4872.69987602,0.0001,2]
[420909530,1776712243184,-4888.22495187,0.0001,2]
[420909531,1776712243193,-4933.25500913,0.0001,2]
[420909532,1776712243203,-4867.35106329,0.0001,2]
[420909533,1776712243212,-4871.8191336,0.0001,2]
[420909534,1776712243221,-3403.86924783,0.0001,2]
[420909535,1776712243231,-3403.80358789,0.0001,2]
[420909536,1776712243240,-1818.85576399,0.0001,2]
[420909537,1776712243249,-151.0,0.0001,2]
[420909538,1776712243258,-3425.52063896,0.0001,2]
[420909539,1776712243268,-151.0,0.0001,2]
[420909540,1776712243278,-1792.10789507,0.0001,2]
[420909541,1776712243287,-317.04607064,0.0001,2]
[420909542,1776712243297,-317.04607064,0.0001,2]
[420909543,1776712243306,-317.04607064,0.0001,2]
[420909544,1776712243315,-213.38714216,0.0001,2]
[420909545,1776712243325,-151.0,0.0001,2]
[420909546,1776712243334,-333.33329787,0.0001,2]
[420909547,1776712243344,-331.07812664,0.0001,2]
[420909548,1776712243353,-330.246154,0.0001,2]
[420909549,1776712243362,-330.246154,0.0001,2]
[420909550,1776712243372,-330.246154,0.0001,2]
[420909551,1776712243381,-330.246158,0.0001,2]
[420909552,1776712243390,-333.33329787,0.0001,2]
[420909553,1776712243399,-201.60640572,0.0001,2]
[420909554,1776712243408,-500.0,0.0001,2]
[420909555,1776712243417,-151.0,0.0001,2]
[420909556,1776712243427,-500.0,0.0001,2]
[420909557,1776712243436,-151.0,0.0001,2]
[420909558,1776712243445,-500.0,0.0001,2]
[420909559,1776712243455,-151.0,0.0001,2]
[420909560,1776712243464,-500.0,0.0001,2]
[420909561,1776712243473,-151.0,0.0001,2]
[420909562,1776712243483,-500.0,0.0001,2]
[420909563,1776712243492,-500.0,0.0001,2]
[420909564,1776712243502,-151.0,0.0001,2]
[420909565,1776712243511,-151.0,0.0001,2]
[420909566,1776712243520,-151.0,0.0001,2]
[420909567,1776712243530,-151.0,0.0001,2]
[420909568,1776712243539,-500.0,0.0001,2]
[420909569,1776712243548,-151.0,0.0001,2]
[420909570,1776712243557,-500.0,0.0001,2]
[420909571,1776712243567,-151.0,0.0001,2]
[420909572,1776712243576,-151.0,0.0001,2]
[420909573,1776712243586,-500.0,0.0001,2]
[420909574,1776712243596,-500.0,0.0001,2]
[420909575,1776712243605,-280.68403498,0.0001,2]
[420909576,1776712243614,-151.0,0.0001,2]
[420909577,1776712243623,-2000.0,0.0001,2]
[420909578,1776712243633,-2000.0,0.0001,2]
[420909579,1776712243643,-2000.0,0.0001,2]
[420909580,1776712243652,-2000.0,0.0001,2]
[420909581,1776712243661,-2000.0,0.0001,2]
[420909582,1776712243671,-2000.0,0.0001,2]
[420909583,1776712243680,-2000.0,0.0001,2]
[420909584,1776712243690,-2000.0,0.0001,2]
[420909585,1776712243699,-2000.0,0.0001,2]
[420909586,1776712243708,-2000.0,0.0001,2]
[420909587,1776712243717,-2000.0,0.0001,2]
[420909588,1776712243727,-352.153519,0.0001,2]
[420909589,1776712243737,-352.153519,0.0001,2]
[420909590,1776712243746,-352.153519,0.0001,2]
[420909591,1776712243755,-352.153515,0.0001,2]
[420909592,1776712243764,-152.97,0.00010032,2]
[420909593,1776712243774,-403.5519923,0.00010132,2]
[420909594,1776712243783,-150.0,0.00010176,2]
[420909595,1776712243793,-168.61,0.0001019,2]
[420909596,1776712243802,-200.0,0.00010197,2]
[420909597,1776712243812,-1592.87721993,0.00010197,2]
[420909598,1776712243821,-155.0,0.00010273,2]
[420909599,1776712243831,-2000.0,0.00010274,2]
[420909600,1776712243840,-10128.2455604,0.00010295,2]
[420909601,1776712243850,-20352.1710296,0.00010298,2]
[420909602,1776712243860,-150.0,0.00010385,2]
[420909603,1776712243869,-151.0,0.00010471,2]
[420909604,1776712243878,-242.15909246,0.00010475,2]
[420909605,1776712243888,-201.93286099,0.00010475,2]
[420909606,1776712243897,-152.95854623,0.0001057,2]
[420909607,1776712243906,-1416.611669,0.00010626,2]
[420909608,1776712243916,-150.0,0.00010698,2]
[420909609,1776712243925,-4099.0,0.000107,5]
[420909610,1776712243935,-141398.82804929,0.000107,2]
[420909611,1776712243944,-150.0,0.00010701,2]
[420909612,1776712243953,-150.0,0.00010701,2]
[420909613,1776712243962,-150.0,0.00010701,2]
[420909614,1776712243972,-150.0,0.00010701,2]
[420909615,1776712243981,-150.0,0.00010701,2]
[420909616,1776712243991,-150.0,0.00010701,2]
[420909617,1776712244001,-150.0,0.00010701,2]
[420909618,1776712244010,-150.0,0.00010701,2]
[420909619,1776712244020,-150.0,0.00010701,2]
[420909620,1776712244029,-150.0,0.00010701,2]
[420909621,1776712244039,-150.0,0.00010701,2]
[420909622,1776712244048,-150.0,0.00010701,2]
[420909623,1776712244057,-200.0,0.00010745,2]
[420909624,1776712244066,-150.0,0.00010776,2]
[420909625,1776712244075,-150.0,0.00010786,2]
[420909626,1776712244084,-515.311711,0.00010788,2]
[420909627,1776712244094,-1224.495902,0.00010788,2]
[420909628,1776712244103,-150.0,0.000108,2]
[420909629,1776712244112,-150.0,0.00010809,2]
[420909630,1776712244122,-150.0,0.00010833,2]
[420909631,1776712244131,-251.0,0.0001085,5]
[420909632,1776712244140,-150.0,0.0001085,2]
[420909633,1776712244151,-150.0,0.00010871,2]
[420909634,1776712244161,-150.0,0.00010871,2]
[420909635,1776712244170,-150.0,0.000109,2]
[420909636,1776712244185,-9300.0,0.000109,3]
[420909637,1776712244194,-5790.25962219,0.000109,2]
[420909638,1776712244204,-150.0,0.00010918,2]
[420909639,1776712244213,-150.0,0.00010924,2]
[420909640,1776712244222,-1600.0,0.00010939,2]
[420909641,1776712244232,-152.97,0.00010948,2]
[420909642,1776712244242,-150.0,0.00010956,2]
[420909643,1776712244251,-1169.38713615,0.00010959,2]
[420909644,1776712244261,-941.47194566,0.00010959,2]
[420909645,1776712244270,-727.62105068,0.00010959,2]
[420909646,1776712244280,-150.0,0.00010959,2]
[420909647,1776712244290,-3240.0,0.00010959,2]
[420909648,1776712244299,-151.0,0.00010959,2]
[420909649,1776712244311,-151.0,0.00010959,2]
[420909650,1776712244320,-162.914011,0.00010959,2]
[420909651,1776712244330,-151.0,0.00010959,2]
[420909652,1776712244340,-151.0,0.00010959,2]
[420909653,1776712244350,-151.0,0.00010959,2]
[420909654,1776712244359,-151.0,0.00010959,2]
[420909655,1776712244369,-151.0,0.00010959,2]
[420909656,1776712244378,-151.0,0.00010959,2]
[420909657,1776712244388,-151.0,0.00010959,2]
[420909658,1776712244397,-151.0,0.00010959,2]
[420909659,1776712244406,-151.0,0.00010959,2]
[420909660,1776712244415,-151.0,0.00010959,2]
[420909661,1776712244425,-151.0,0.00010959,2]
[420909662,1776712244434,-151.0,0.00010959,2]
[420909663,1776712244443,-151.0,0.00010959,2]
[420909664,1776712244453,-219.42079,0.00010959,2]
[420909665,1776712244462,-595.0,0.0001096,2]
[420909666,1776712244472,-150.0,0.00010966,2]
[420909667,1776712244481,-1137.31,0.00010989,2]
[420909668,1776712244490,-1558.81,0.00010989,2]
[420909669,1776712244500,-1369.06,0.00010989,2]
[420909670,1776712244509,-1277.5,0.00010989,2]
[420909671,1776712244518,-598.72,0.00010989,2]
[420909672,1776712244527,-358.13968791,0.0001099,2]
[420909673,1776712244536,-184.0,0.00010996,2]
[420909674,1776712244546,-150.0,0.00010998,2]
[420909675,1776712244556,-150.0,0.00010999,2]
[420909676,1776712244566,-150.0,0.00010999,2]
[420909677,1776712244576,-150.0,0.00010999,2]
[420909678,1776712244585,-15466.92,0.00011,2]
[420909679,1776712244596,-15466.92,0.00011,2]
[420909680,1776712244606,-315.87411672,0.00011023,2]
[420909681,1776712244616,-209.40437684,0.00011023,2]
[420909682,1776712244625,-150.0,0.00011026,2]
[420909683,1776712244634,-599.60298507,0.00011027,2]
[420909684,1776712244644,-150.0,0.00011041,2]
[420909685,1776712244654,-150.0,0.00011041,2]
[420909686,1776712244665,-150.0,0.00011073,2]
[420909687,1776712244675,-150.0,0.00011098,2]
[420909688,1776712244685,-150.0,0.00011098,2]
[420909689,1776712244695,-150.0,0.00011098,2]
[420909690,1776712244705,-150.0,0.00011098,2]
[420909691,1776712244714,-1596.9486158,0.00011099,2]
[420909692,1776712244724,-13281.14735616,0.00011099,2]
[420909693,1776712244733,-13281.14735608,0.00011099,2]
[420909694,1776712244743,-150.0,0.00011126,2]
[420909695,1776712244752,-150.0,0.00011134,2]